bitfinex/quotes_ETHUSD_20250324
["timestamp","ask_amount","ask_price","bid_price","bid_amount"]
[1742837180284,7.34900881,2092.2,2091.9,4.59]
[1742837180483,6.59310881,2092.2,2091.9,4.59]
[1742837180705,10.93943,2092.3,2091.9,5.24056]
[1742837180908,10.93943,2092.3,2092.0,4.59]
[1742837182405,4.77969,2092.2,2092.0,4.59]
[1742837182808,10.93943,2092.3,2092.0,4.59]
[1742837183468,4.77967,2092.2,2092.0,4.59]
[1742837183673,10.93943,2092.3,2092.0,4.59]
[1742837184007,15.71903,2092.3,2092.0,4.59]
[1742837184502,10.93943,2092.3,2092.0,4.59]
[1742837186311,12.60155512,2092.3,2092.0,4.59]
[1742837186515,4.77977,2092.2,2092.0,4.59]
[1742837189209,10.93944,2092.3,2092.0,4.59]
[1742837189416,15.71903,2092.3,2092.0,4.59]
[1742837190073,6.16,2092.3,2092.2,4.77965]
[1742837190270,0.1015012,2092.5,2092.2,4.77965]
[1742837190506,0.1015012,2092.5,2092.2,4.77954]
[1742837190682,0.1015012,2092.5,2092.3,0.4603]
[1742837190884,0.1015012,2092.5,2092.3,5.23964]
[1742837191184,0.1015012,2092.5,2092.3,10.01895]
[1742837191483,0.1015012,2092.5,2092.3,10.01892]
[1742837191705,0.1015012,2092.5,2092.3,5.23961]
[1742837191877,0.1015012,2092.5,2092.3,0.4603]
[1742837192078,0.1015012,2092.5,2092.2,5.23995]
[1742837192927,0.1015012,2092.5,2092.2,10.0195]
[1742837193411,0.1015012,2092.5,2092.2,0.4603]
[1742837193611,0.1015012,2092.5,2092.2,5.23995]
[1742837194125,0.1015012,2092.5,2092.2,5.23994]
[1742837194679,0.1015012,2092.5,2092.2,0.4603]
[1742837194898,4.8805712,2092.5,2092.1,4.77984]
[1742837195328,4.8805712,2092.5,2092.1,9.5596]
[1742837196132,0.1015012,2092.5,2092.2,5.23985]
[1742837196514,0.1015012,2092.5,2092.3,4.77942]
[1742837196730,0.1015012,2092.5,2092.2,5.23986]
[1742837196929,0.1015012,2092.5,2092.2,5.2398]
[1742837197107,0.1015012,2092.5,2092.3,4.77941]
[1742837197301,0.1015012,2092.5,2092.2,5.23989]
[1742837199351,0.1015012,2092.5,2092.2,5.23987]
[1742837199556,0.1015012,2092.5,2092.2,10.01939]
[1742837199746,0.1015012,2092.5,2092.2,5.23982]
[1742837200560,4.8804812,2092.5,2092.2,0.4603]
[1742837200762,4.8804812,2092.5,2092.1,9.55959]
[1742837201262,0.1015012,2092.5,2092.2,4.77961]
[1742837202859,4.8804712,2092.5,2092.2,4.77961]
[1742837203353,0.9323012,2092.5,2092.2,4.77961]
[1742837203865,0.1015012,2092.5,2092.3,5.23969]
[1742837204060,0.1015012,2092.5,2092.4,4.7792]
[1742837204273,0.1015012,2092.5,2092.2,4.77958]
[1742837205377,0.1015012,2092.5,2092.2,4.77949]
[1742837205670,0.1015012,2092.5,2092.2,4.77956]
[1742837205967,4.77928,2092.4,2092.0,14.15009]
[1742837206134,4.77928,2092.4,2092.0,4.78001]
[1742837206333,4.77928,2092.4,2092.1,4.588]
[1742837206669,4.8804712,2092.5,2092.2,4.588]
[1742837206969,4.77928,2092.4,2092.2,4.588]
[1742837207322,4.8804712,2092.5,2092.2,4.588]
[1742837207564,9.6596212,2092.5,2092.2,4.588]
[1742837208173,4.8804712,2092.5,2092.2,4.588]
[1742837208334,4.77921,2092.4,2092.2,4.588]
[1742837208539,4.8804712,2092.5,2092.2,4.588]
[1742837208866,9.6596112,2092.5,2092.2,4.588]
[1742837209273,4.8804712,2092.5,2092.2,4.588]
[1742837210376,9.6596612,2092.5,2092.2,4.588]
[1742837210582,4.77925,2092.4,2092.2,4.588]
[1742837210879,4.8804712,2092.5,2092.2,4.588]
[1742837211537,0.1015012,2092.5,2092.2,4.588]
[1742837211738,4.8805412,2092.5,2092.2,4.588]
[1742837212339,4.8805412,2092.5,2092.2,9.36765]
[1742837214074,4.8805412,2092.5,2092.2,4.588]
[1742837215195,9.6596912,2092.5,2092.2,4.588]
[1742837215499,4.8805412,2092.5,2092.2,4.588]
[1742837216066,9.6596712,2092.5,2092.2,4.588]
[1742837216392,0.1015012,2092.5,2092.3,5.23962]
[1742837217189,0.1015012,2092.5,2092.4,4.7792]
[1742837220315,0.1015012,2092.5,2092.3,5.23965]
[1742837220506,0.1015012,2092.5,2092.3,10.01893]
[1742837220707,0.1015012,2092.5,2092.4,4.7792]
[1742837222227,0.1015012,2092.5,2092.2,9.36762]
[1742837223382,0.1015012,2092.5,2092.3,4.77942]
[1742837223582,0.1015012,2092.5,2092.2,4.77956]
[1742837223809,0.1015012,2092.5,2092.3,4.587]
[1742837227796,5.6587612,2092.5,2092.3,4.587]
[1742837228406,6.9090576,2092.5,2092.3,4.587]
[1742837230230,4.7792,2092.4,2092.3,4.587]
[1742837230430,4.7792,2092.4,2092.3,4.586]
[1742837230915,4.77977,2092.2,2091.9,28.7243]
[1742837231115,4.77995,2092.1,2091.9,25.264]
[1742837231345,5.257927,2092.1,2092.0,4.586]
[1742837231923,4.77995,2092.1,2092.0,4.586]
[1742837238466,4.78049,2091.9,2091.5,0.4603]
[1742837238635,4.78089,2091.7,2091.6,4.586]
[1742837239524,5.60928,2091.9,2091.6,4.586]
[1742837239725,4.78029,2092.0,2091.7,5.24107]
[1742837239954,4.78034,2091.9,2091.6,9.36688]
[1742837240337,9.56085,2091.9,2091.6,4.586]
[1742837240537,4.78034,2091.9,2091.6,4.586]
[1742837240762,9.56086,2091.9,2091.6,4.586]
[1742837240962,4.78034,2091.9,2091.6,4.586]
[1742837241162,4.78034,2091.9,2091.6,9.36702]
[1742837242130,5.57975,2091.8,2091.7,4.586]
[1742837243674,11.73975,2091.8,2091.7,4.586]
[1742837246026,4.78094,2091.7,2091.6,4.586]
[1742837246266,4.78036,2091.9,2091.6,4.586]
[1742837246561,9.56055,2092.0,2091.6,9.36694]
[1742837246774,4.78047,2091.9,2091.6,4.586]
[1742837247463,4.78066,2091.8,2091.6,4.586]
[1742837247972,4.78047,2091.9,2091.6,4.586]
[1742837248271,9.56097,2091.9,2091.6,4.586]
[1742837248466,4.78047,2091.9,2091.6,4.586]
[1742837248669,14.69576,2092.2,2091.7,4.78064]
[1742837248670,4.77989,2092.1,2091.7,4.78064]
[1742837248975,4.77989,2092.1,2091.8,0.4603]
[1742837249544,4.77989,2092.1,2091.8,5.24084]
[1742837250650,10.93973,2092.2,2091.8,5.24084]
[1742837250869,4.77992,2092.1,2091.8,5.24084]
[1742837251470,9.55999,2092.1,2091.8,0.4603]
[1742837251772,4.77992,2092.1,2091.8,0.4603]
[1742837252172,10.93967,2092.2,2091.8,0.4603]
[1742837252363,10.93967,2092.2,2091.8,5.2407]
[1742837252538,15.71948,2092.2,2091.8,5.24083]
[1742837252738,10.93967,2092.2,2091.8,10.02124]
[1742837253157,6.16,2092.2,2091.9,4.78017]
[1742837253369,5.61193,2092.4,2092.0,4.77994]
[1742837253572,6.2615012,2092.5,2092.2,4.77947]
[1742837254249,11.0404712,2092.5,2092.2,4.77947]
[1742837254480,6.2615012,2092.5,2092.2,4.77947]
[1742837254774,6.2615012,2092.5,2092.3,4.7794]
[1742837254941,0.1015012,2092.5,2092.3,4.7794]
[1742837255139,0.1015012,2092.5,2092.2,4.77958]
[1742837255680,0.1015012,2092.5,2092.2,9.55907]
[1742837256478,0.1015012,2092.5,2092.2,4.77949]
[1742837257043,4.8804812,2092.5,2092.1,9.82615]
[1742837258072,5.92946532,2092.5,2092.1,9.82615]
[1742837258481,5.92946532,2092.5,2092.1,14.60589]
[1742837258654,4.8804812,2092.5,2092.1,14.60589]
[1742837258975,4.8804812,2092.5,2092.1,9.82604]
[1742837259899,4.7795,2092.3,2092.1,4.586]
[1742837260108,4.7793,2092.4,2092.1,4.586]
[1742837260399,4.8804812,2092.5,2092.2,0.4603]
[1742837260400,4.8805812,2092.5,2092.2,0.4603]
[1742837260558,10.62571932,2092.5,2092.2,0.4603]
[1742837261970,4.7792,2092.4,2092.2,0.4603]
[1742837263288,4.7792,2092.4,2092.1,4.586]
[1742837265706,5.84642932,2092.5,2092.1,4.586]
[1742837265878,5.84642932,2092.5,2092.1,9.36584]
[1742837266064,1.06744932,2092.5,2092.2,4.77964]
[1742837266387,1.06744932,2092.5,2092.1,9.36581]
[1742837266790,5.84646932,2092.5,2092.1,9.36581]
[1742837267118,5.84646932,2092.5,2092.1,14.14561]
[1742837267322,5.84646932,2092.5,2092.1,9.3658]
[1742837267782,1.06744932,2092.5,2092.1,9.36575]
[1742837268302,11.42638932,2092.5,2092.1,4.586]
[1742837268519,6.64721932,2092.5,2092.1,4.586]
[1742837270215,6.64721932,2092.5,2092.1,9.36587]
[1742837270415,6.64721932,2092.5,2092.1,4.586]
[1742837270818,1.14259793,2092.4,2092.2,4.584]
[1742837271120,5.92187793,2092.4,2092.2,4.584]
[1742837271418,5.92187793,2092.4,2091.9,30.04628]
[1742837271419,4.77977,2092.2,2091.9,25.266]
[1742837271627,4.77977,2092.2,2092.0,4.584]
[1742837271628,10.33843,2092.2,2092.0,4.584]
[1742837271777,11.48653279,2092.2,2092.0,4.584]
[1742837271992,4.77988,2092.1,2092.0,4.584]
[1742837272323,4.78011,2092.0,2091.9,25.266]
[1742837272527,5.55891,2092.0,2091.9,29.85]
[1742837273236,0.7788,2092.0,2091.9,29.85]
[1742837273414,10.9399,2092.1,2091.9,29.85]
[1742837273615,6.16,2092.1,2091.9,29.85]
[1742837274438,10.93993,2092.1,2091.9,29.85]
[1742837274651,6.16,2092.1,2091.9,29.85]
[1742837275951,12.88144279,2092.2,2091.9,29.85]
[1742837276259,8.10170279,2092.2,2091.9,34.6303]
[1742837276402,6.9536,2092.2,2091.9,34.6303]
[1742837276606,6.16,2092.2,2091.9,39.4105]
[1742837276823,6.16,2092.2,2092.0,4.78007]
[1742837277403,6.16,2092.2,2091.9,35.09053]
[1742837278849,6.16,2092.2,2091.9,29.85]
[1742837279227,6.16,2092.2,2091.9,34.63031]
[1742837280630,6.16,2092.2,2091.9,39.41048]
[1742837281150,6.16,2092.2,2092.0,4.77994]
[1742837281747,11.73411,2092.4,2092.0,4.77994]
[1742837282257,16.5135,2092.4,2091.9,9.36432]
[1742837282438,4.77946,2092.3,2091.9,9.36432]
[1742837282831,13.69566012,2092.4,2091.9,14.14448]
[1742837283552,13.69566012,2092.4,2091.9,14.14433]
[1742837283756,13.69566012,2092.4,2092.0,4.78008]
[1742837284354,11.73416,2092.4,2092.0,4.78008]
[1742837286559,11.73416,2092.4,2092.0,5.24038]
[1742837286754,6.9549,2092.4,2092.0,10.02038]
[1742837286928,6.16,2092.4,2092.1,4.77977]
[1742837287257,6.16,2092.4,2092.1,4.77974]
[1742837287762,11.0405412,2092.5,2092.1,4.77974]
[1742837289556,15.8196812,2092.5,2092.1,4.77974]
[1742837289765,11.0405412,2092.5,2092.1,4.77974]
[1742837290361,15.8196912,2092.5,2092.1,4.77974]
[1742837290969,11.0405412,2092.5,2092.1,4.77974]
[1742837293061,15.8196712,2092.5,2092.1,4.77974]
[1742837293462,11.0405412,2092.5,2092.1,4.77974]
[1742837294964,15.8196912,2092.5,2092.0,10.02037]
[1742837295153,11.0405412,2092.5,2092.0,10.02026]
[1742837297449,6.2615012,2092.5,2092.1,4.77981]
[1742837298046,11.0405312,2092.5,2092.1,4.77981]
[1742837298665,11.0405312,2092.5,2092.1,9.5596]
[1742837298966,11.0405312,2092.5,2092.1,4.77979]
[1742837299465,11.0405312,2092.5,2092.1,9.5596]
[1742837299668,11.0405312,2092.5,2092.1,4.77979]
[1742837300065,11.0405112,2092.5,2092.1,4.77973]
[1742837300269,11.0405112,2092.5,2092.1,9.55947]
[1742837301058,11.0405112,2092.5,2092.1,4.77973]
[1742837301233,6.2615012,2092.5,2092.1,9.55948]
[1742837301737,6.2615012,2092.5,2092.2,4.77962]
[1742837302862,11.0404712,2092.5,2092.1,4.77973]
[1742837305276,6.2615012,2092.5,2092.1,4.77973]
[1742837305433,6.2615012,2092.5,2092.2,4.77955]
[1742837307471,6.2615012,2092.5,2092.2,4.7795]
[1742837307774,6.2615012,2092.5,2092.2,9.55903]
[1742837307952,6.2615012,2092.5,2092.2,4.7795]
[1742837311075,0.1015012,2092.5,2092.2,4.7795]
[1742837315277,4.8805712,2092.5,2092.1,4.77986]
[1742837315794,4.8805712,2092.5,2092.0,4.77997]
[1742837315795,0.7627,2092.3,2092.0,4.77997]
[1742837319586,0.7627,2092.3,2092.0,4.77993]
[1742837320386,0.7627,2092.3,2092.0,9.55997]
[1742837320883,0.7627,2092.3,2092.0,4.77993]
[1742837323978,0.7627,2092.3,2092.1,4.77988]
[1742837324791,0.7627,2092.3,2092.0,4.78003]
[1742837324958,0.7627,2092.3,2092.0,4.77997]
[1742837325786,0.7627,2092.3,2092.0,9.55994]
[1742837325959,0.7627,2092.3,2092.1,4.77986]
[1742837326159,0.7627,2092.3,2092.0,4.77997]
[1742837327466,0.7627,2092.3,2092.0,9.55993]
[1742837327859,0.7627,2092.3,2092.0,9.55994]
[1742837328256,0.7627,2092.3,2092.1,4.77986]
[1742837328586,0.7627,2092.3,2092.0,4.77996]
[1742837328959,0.7627,2092.3,2091.9,9.36426]
[1742837329164,5.54214,2092.3,2091.9,4.78021]
[1742837329393,0.7627,2092.3,2092.0,4.579]
[1742837330097,0.7627,2092.3,2092.0,9.35911]
[1742837331382,5.54214,2092.3,2092.0,4.579]
[1742837331785,0.7627,2092.3,2092.0,9.35909]
[1742837332206,0.7627,2092.3,2092.0,4.579]
[1742837332403,4.77969,2092.2,2092.0,4.579]
[1742837332703,10.32188,2092.3,2092.0,4.579]
[1742837332903,5.54227,2092.3,2092.0,4.579]
[1742837336705,5.54227,2092.3,2092.0,9.35911]
[1742837336706,0.7627,2092.3,2092.0,9.35911]
[1742837336890,6.16,2092.4,2092.2,4.77954]
[1742837337084,0.1015012,2092.5,2092.4,4.7792]
[1742837337284,0.1015012,2092.5,2092.4,8.2872865]
[1742837337911,0.1015012,2092.5,2092.4,8.2395]
[1742837339110,0.1015012,2092.5,2092.4,8.28728031]
[1742837339477,0.1015012,2092.5,2092.4,8.2395]
[1742837340210,0.1015012,2092.5,2092.4,8.59756354]
[1742837343011,0.1015012,2092.5,2092.4,8.64534436]
[1742837343217,0.1015012,2092.5,2092.4,8.64534399]
[1742837343511,0.1015012,2092.5,2092.4,8.59756354]
[1742837347394,1.2e-06,2092.5,2092.4,8.59756354]
[1742837347994,1.2e-06,2092.5,2092.4,8.64533674]
[1742837348323,1.2e-06,2092.5,2092.4,9.19533674]
[1742837348526,1.2e-06,2092.5,2092.4,9.14756354]
[1742837349123,1.2e-06,2092.5,2092.4,13.92956354]
[1742837349995,1.2e-06,2092.5,2092.4,19.95956354]
[1742837350202,1.2e-06,2092.5,2092.4,23.82222726]
[1742837350409,0.01,2093.4,2093.3,4.77714]
[1742837350626,0.01,2093.4,2093.3,9.35414]
[1742837353216,0.01,2093.4,2093.3,9.81444]
[1742837353941,0.01,2093.4,2093.3,10.17062793]
[1742837355636,0.01,2093.4,2093.3,13.17062793]
[1742837357017,0.01,2093.4,2093.3,12.71032793]
[1742837358913,0.01,2093.4,2093.3,13.17062793]
[1742837359310,0.01,2093.4,2093.3,19.20062793]
[1742837359935,0.7528,2094.3,2094.0,4.77547]
[1742837360142,0.7528,2094.3,2094.1,4.575]
[1742837360609,0.7528,2094.3,2094.1,9.35031]
[1742837360828,5.60341,2094.5,2094.1,9.3501]
[1742837361028,0.0896676,2094.4,2094.1,9.3501]
[1742837361459,4.8643176,2094.4,2094.1,9.35032]
[1742837361662,4.8643176,2094.4,2094.1,4.575]
[1742837361843,4.77509,2094.2,2094.1,4.575]
[1742837362046,0.8302,2094.0,2093.8,25.25]
[1742837362238,0.8302,2094.0,2093.9,4.574]
[1742837364059,0.8302,2094.0,2093.9,9.34977]
[1742837364269,0.123002,2094.6,2094.5,4.7744]
[1742837364567,0.123002,2094.6,2094.5,12.3474]
[1742837366980,0.123002,2094.6,2094.5,13.1659098]
[1742837367658,0.123002,2094.6,2094.5,8.5929098]
[1742837367842,0.123002,2094.6,2094.5,13.1659098]
[1742837374780,0.123002,2094.6,2094.5,38.4009098]
[1742837376090,0.123002,2094.6,2094.5,29.806]
[1742837376288,0.123002,2094.6,2094.5,25.235]
[1742837376597,0.942002,2094.6,2094.5,29.806]
[1742837380798,5.716182,2094.6,2094.5,25.235]
[1742837380974,6.7652012,2094.6,2094.5,29.806]
[1742837382300,5.716182,2094.6,2094.5,29.806]
[1742837382800,0.942002,2094.6,2094.5,29.806]
[1742837383996,0.942002,2094.6,2094.5,34.5804]
[1742837384783,0.942002,2094.6,2094.5,29.806]
[1742837387480,0.123002,2094.6,2094.5,34.5804]
[1742837389103,0.123002,2094.6,2094.5,29.806]
[1742837389410,0.123002,2094.6,2094.5,34.5804]
[1742837389622,0.123002,2094.6,2094.5,34.94606482]
[1742837389986,0.123002,2094.6,2094.5,34.5804]
[1742837390193,0.123002,2094.6,2094.5,29.806]
[1742837390393,0.123002,2094.6,2094.5,30.73971741]
[1742837390590,0.123002,2094.6,2094.5,44.43636482]
[1742837390591,2e-06,2094.6,2094.5,44.43636482]
[1742837393485,2e-06,2094.6,2094.5,38.40536482]
[1742837393685,2e-06,2094.6,2094.5,37.94506482]
[1742837395512,2e-06,2094.6,2094.5,33.37506482]
[1742837395811,2e-06,2094.6,2094.5,37.94506482]
[1742837398597,2e-06,2094.6,2094.5,8.14006482]
[1742837398798,2e-06,2094.6,2094.5,12.71006482]
[1742837400295,2e-06,2094.6,2094.5,4.93566482]
[1742837400492,2e-06,2094.6,2094.5,9.71006482]
[1742837400899,2e-06,2094.6,2094.5,4.93566482]
[1742837401827,2e-06,2094.6,2094.4,25.232]
[1742837402031,2e-06,2094.6,2094.5,9.39214241]
[1742837402332,2e-06,2094.6,2094.5,10.213386]
[1742837402523,2e-06,2094.6,2094.5,10.16564359]
[1742837402897,2e-06,2094.6,2094.5,9.70534359]
[1742837407513,2e-06,2094.6,2094.5,34.93834359]
[1742837409559,5.599182,2094.6,2094.5,25.233]
[1742837409711,5.599182,2094.6,2094.5,29.803]
[1742837410132,5.599182,2094.6,2094.5,25.233]
[1742837410336,5.599182,2094.6,2094.5,29.803]
[1742837411147,5.599182,2094.6,2094.5,25.233]
[1742837411320,5.599182,2094.6,2094.5,29.803]
[1742837411843,6.149182,2094.6,2094.5,29.803]
[1742837412049,12.309182,2094.6,2094.5,29.803]
[1742837412345,13.4015172,2094.6,2094.5,25.233]
[1742837412645,13.4015172,2094.6,2094.5,29.803]
[1742837414911,4.77508,2094.3,2093.9,5.12938104]
[1742837415118,4.77508,2094.3,2093.8,30.011]
[1742837415119,4.77509,2094.2,2094.0,4.57]
[1742837415435,5.57042,2094.1,2094.0,4.57]
[1742837415746,0.7951,2094.1,2094.0,4.57]
[1742837415945,0.7951,2094.1,2094.0,9.34554]
[1742837416140,0.7951,2094.1,2094.0,4.57]
[1742837416719,5.57042,2094.1,2094.0,4.57]
[1742837417228,0.7951,2094.1,2094.0,4.57]
[1742837420244,5.57042,2094.1,2094.0,4.57]
[1742837420464,4.77565,2094.0,2093.8,25.235]
[1742837420772,5.57048,2094.1,2093.9,4.57]
[1742837420966,4.77554,2094.0,2093.9,4.57]
[1742837421955,4.77554,2094.0,2093.8,25.235]
[1742837421956,4.77577,2093.9,2093.8,25.235]
[1742837422155,6.15417,2093.9,2093.8,29.805]
[1742837423746,7.863141,2093.9,2093.8,29.805]
[1742837424238,7.863141,2093.9,2093.8,25.235]
[1742837424440,7.863141,2093.9,2093.8,29.806]
[1742837425558,0.55,2093.6,2093.0,25.7003]
[1742837425763,0.8255,2093.2,2093.1,4.57]
[1742837426258,5.60287,2093.2,2093.1,4.57]
[1742837426480,6.15287,2093.2,2093.1,4.57]
[1742837426822,4.77761,2093.1,2092.9,25.242]
[1742837427025,0.8255,2093.2,2093.0,4.571]
[1742837427223,0.7779,2093.4,2093.1,4.7775]
[1742837427444,4.77672,2093.5,2093.1,4.77744]
[1742837427656,0.7779,2093.6,2093.3,4.77705]
[1742837427961,4.77625,2093.7,2093.3,4.77705]
[1742837428129,11.71392,2093.8,2093.5,4.77657]
[1742837428327,10.93602,2093.8,2093.6,4.571]
[1742837429158,6.16,2093.8,2093.6,4.571]
[1742837429666,0.8074,2094.0,2093.7,4.77616]
[1742837429858,10.35869,2094.0,2093.6,9.34739]
[1742837430061,9.55184,2093.9,2093.6,4.571]
[1742837430263,4.77611,2093.8,2093.6,4.571]
[1742837430856,5.3259,2093.9,2093.6,4.571]
[1742837431162,10.10189,2093.9,2093.6,4.571]
[1742837431365,4.77605,2093.8,2093.6,4.571]
[1742837431565,10.10183,2093.9,2093.6,4.571]
[1742837432241,4.77601,2093.8,2093.6,4.571]
[1742837432438,5.3259,2093.9,2093.6,4.571]
[1742837432636,5.3259,2093.9,2093.6,9.34738]
[1742837432863,0.55,2093.9,2093.6,9.34738]
[1742837433063,5.32586,2093.9,2093.6,9.34738]
[1742837433265,5.32586,2093.9,2093.6,4.571]
[1742837433561,6.16,2094.1,2093.6,9.39500224]
[1742837433764,10.93544,2094.1,2093.7,9.55225]
[1742837433956,6.16,2094.1,2093.8,4.776]
[1742837434156,5.54582,2094.2,2093.8,9.55186]
[1742837434357,5.54582,2094.2,2093.8,9.599615]
[1742837434758,5.54582,2094.2,2093.8,4.823615]
[1742837435055,4.7754,2094.1,2093.7,10.0126]
[1742837435446,4.7754,2094.1,2093.7,4.77609]
[1742837436375,4.7754,2094.1,2093.7,4.77608]
[1742837436872,4.77556,2094.0,2093.7,4.77608]
[1742837437084,4.7754,2094.1,2093.7,9.55215]
[1742837437277,4.7754,2094.1,2093.8,4.77598]
[1742837437478,9.55088,2094.1,2093.7,4.77607]
[1742837438084,4.7754,2094.1,2093.7,9.55215]
[1742837438266,4.7754,2094.1,2093.7,4.77607]
[1742837438469,9.55089,2094.1,2093.7,4.77607]
[1742837438675,4.77555,2094.0,2093.7,4.77607]
[1742837439152,4.77555,2094.0,2093.6,9.34731]
[1742837439555,9.55087,2094.1,2093.7,4.7762]
[1742837439785,4.77538,2094.1,2093.7,4.7762]
[1742837440381,4.77566,2094.0,2093.6,4.571]
[1742837440592,4.77587,2093.9,2093.6,4.571]
[1742837440752,9.55183,2093.9,2093.6,4.571]
[1742837441283,10.32305,2093.8,2093.6,4.571]
[1742837441486,10.32306,2093.8,2093.6,4.571]
[1742837441786,4.77623,2093.7,2093.4,25.245]
[1742837441984,6.45462751,2093.8,2093.4,25.245]
[1742837441985,5.54686,2093.8,2093.5,4.571]
[1742837442183,4.77606,2093.8,2093.5,4.571]
[1742837442386,4.77606,2093.8,2093.5,9.34768]
[1742837442690,5.55823,2094.1,2093.7,4.77615]
[1742837443186,4.77563,2094.0,2093.7,4.77615]
[1742837444989,10.33367,2094.1,2093.7,4.77615]
[1742837445762,4.77562,2094.0,2093.7,4.77615]
[1742837445961,5.5582,2094.1,2093.7,4.77615]
[1742837446484,4.7754,2094.1,2093.7,4.7761]
[1742837446786,4.77557,2094.0,2093.7,4.7761]
[1742837447158,9.55129,2094.0,2093.6,5.23668]
[1742837447359,4.77571,2094.0,2093.6,5.23668]
[1742837447559,4.77571,2094.0,2093.5,9.34754]
[1742837447560,4.77585,2093.9,2093.5,9.34754]
[1742837447772,4.77601,2093.8,2093.5,9.34754]
[1742837448067,4.77585,2093.9,2093.5,9.34754]
[1742837448258,0.8108,2094.0,2093.4,30.4822]
[1742837448459,4.7758,2093.9,2093.5,4.571]
[1742837448682,4.7758,2093.9,2093.5,4.7766]
[1742837448960,4.7758,2093.9,2093.6,4.571]
[1742837449184,10.9358,2093.9,2093.6,4.571]
[1742837450359,15.71173,2093.9,2093.6,4.571]
[1742837451291,6.16,2093.9,2093.6,5.50471741]
[1742837451470,6.16,2093.9,2093.7,4.77615]
[1742837451671,6.16,2093.9,2093.6,9.34744]
[1742837451892,10.93584,2093.9,2093.6,4.571]
[1742837452197,11.68754,2093.9,2093.6,4.571]
[1742837453895,10.93584,2093.9,2093.6,9.34745]
[1742837454283,10.93584,2093.9,2093.6,4.571]
[1742837454997,4.77584,2093.9,2093.6,4.571]
[1742837455683,4.77584,2093.9,2093.7,0.4603]
[1742837455878,4.77584,2093.9,2093.6,9.34738]
[1742837456083,6.16,2094.0,2093.7,4.77602]
[1742837456467,6.16,2094.0,2093.7,9.55212]
[1742837456678,6.16,2094.0,2093.7,4.77602]
[1742837457362,10.93556,2094.0,2093.7,4.77602]
[1742837457665,10.63556,2094.0,2093.7,4.77602]
[1742837457860,5.86,2094.0,2093.7,4.77602]
[1742837458598,10.63556,2094.0,2093.7,4.77602]
[1742837459094,5.86,2094.0,2093.7,9.55216]
[1742837459305,5.86,2094.0,2093.8,4.77595]
[1742837459504,5.86,2094.0,2093.7,4.77602]
[1742837460069,5.86,2094.2,2093.9,4.77562]
[1742837460271,5.86,2094.2,2094.0,4.77549]
[1742837460578,5.86,2094.2,2094.1,9.34632]
[1742837461573,4.774202,2094.6,2094.3,4.77481]
[1742837461574,2e-06,2094.6,2094.3,4.77481]
[1742837461779,4.774272,2094.6,2094.2,4.77497]
[1742837461997,4.774272,2094.6,2094.2,9.54991]
[1742837462205,4.774272,2094.6,2094.2,0.4603]
[1742837462505,4.774272,2094.6,2094.2,5.23526]
[1742837463387,2e-06,2094.6,2094.3,4.77481]
[1742837463895,2e-06,2094.6,2094.4,4.77461]
[1742837464098,2e-06,2094.6,2094.5,30.4777]
[1742837465176,2e-06,2094.6,2094.5,33.4777]
[1742837468189,2e-06,2094.6,2094.5,25.243]
[1742837468497,2e-06,2094.6,2094.5,29.812]
[1742837469793,5.571482,2094.6,2094.5,25.243]
[1742837469971,5.571482,2094.6,2094.5,29.812]
[1742837472421,2.3818452,2094.6,2094.0,25.6983]
[1742837472719,4.77518,2094.2,2094.1,4.569]
[1742837473075,4.77518,2094.2,2094.0,25.238]
[1742837473275,4.77518,2094.2,2094.1,4.569]
[1742837474705,5.53428,2094.2,2094.1,4.569]
[1742837474908,4.77532,2094.1,2094.0,25.238]
[1742837475107,4.77532,2094.1,2094.0,29.807]
[1742837476402,5.32532,2094.1,2094.0,29.807]
[1742837476603,6.09362,2094.1,2094.0,29.807]
[1742837477132,0.7702,2094.3,2094.0,29.807]
[1742837477299,4.77485,2094.4,2094.0,35.04271]
[1742837477624,4.77485,2094.4,2094.0,39.8181]
[1742837477787,4.77486,2094.3,2094.0,35.04269]
[1742837478112,4.77486,2094.3,2094.0,29.807]
[1742837478522,4.77465,2094.4,2094.1,5.23559]
[1742837479021,4.77465,2094.4,2094.1,0.4603]
[1742837479218,5.54462,2094.5,2094.1,0.4603]
[1742837479424,4.77467,2094.4,2094.1,0.4603]
[1742837479607,4.77467,2094.4,2094.0,34.5824]
[1742837479809,4.77467,2094.4,2094.1,4.7753]
[1742837480109,4.77467,2094.4,2094.0,34.58247]
[1742837480421,4.77467,2094.4,2094.1,4.7753]
[1742837481326,2e-06,2094.6,2094.1,4.7753]
[1742837481327,2e-06,2094.6,2094.3,4.77469]
[1742837482022,4.774282,2094.6,2094.2,5.23519]
[1742837482721,4.77442,2094.5,2094.2,5.23519]
[1742837483219,4.77442,2094.5,2094.1,4.7753]
[1742837483722,4.77471,2094.4,2094.0,39.81829]
[1742837483920,4.77471,2094.4,2094.0,30.47375]
[1742837484222,5.54215,2094.3,2094.1,4.569]
[1742837484427,4.77513,2094.2,2094.1,4.569]
[1742837484924,4.77513,2094.2,2094.0,25.238]
[1742837485122,4.77532,2094.1,2094.0,25.238]
[1742837485438,4.77532,2094.1,2094.0,29.807]
[1742837485807,4.77532,2094.1,2094.0,25.238]
[1742837486132,7.178085,2094.1,2094.0,29.807]
[1742837487691,7.178085,2094.1,2094.0,25.238]